[Event "FIDE Online Steinitz Memorial Open"]
[Site "Internet"]
[Date "2020.05.16"]
[Round "9"]
[White "Bu, Xiangzhi"]
[Black "Svidler, Peter"]
[Result "1/2-1/2"]
[ECO "D41"]
[WhiteElo "2760"]
[BlackElo "2754"]
[Annotator "RC"]
[PlyCount "72"]
[EventDate "2020.05.15"]
[EventType "tourn"]
[SourceTitle "playchess.com"]
[Source "ChessBase"]
[SourceQuality "1"]
[TimeControl "180+2"]

1. Nf3 Nf6 2. c4 {[%emt 0:00:04]} c5 {[%emt 0:00:09]} 3. g3 {[%emt 0:00:01]} d5 {[%emt 0:00:07]} 4. cxd5 {[%emt 0:00:02]} Nxd5 {[%emt 0:00:01]} 5. Bg2 {[%emt 0:00:01]} Nc6 {[%emt 0:00:01]} 6. d4 {[%emt 0:00:01]} e6 {[%emt 0:00:26]} 7. O-O {[%emt 0:00:02]} Be7 {[%emt 0:00:02]} 8. Nc3 {[%emt 0:00:01]} O-O {[%emt 0:00:18]} 9. Nxd5 {[%emt 0:00:03]} exd5 {[%emt 0:00:01]} 10. dxc5 {[%emt 0:00:02]} Bxc5 {[%emt 0:00:00]} 11. Bg5 {[%emt 0:00:01]} f6 {[%emt 0:00:02]} 12. Rc1 {[%emt 0:00:03]} Bb6 {[%emt 0:00:02]} 13. Bd2 {[%emt 0:00:02]} Bf5 {[%emt 0:00:09]} 14. b4 {[%emt 0:00:04]} Be4 {[%emt 0:00:10]} 15. b5 {[%emt 0:00:09]} Ne5 {[%emt 0:00:04]} 16. Bb4 {[%emt 0:00:21]} Re8 {[%emt 0:00:03]} 17. Nxe5 {[%emt 0:00:01]} Bxg2 {[%emt 0:00:11]} 18. Kxg2 {[%emt 0:00:04]} Rxe5 {[%emt 0:00:02]} 19. Qd3 {[%emt 0:00:08]} d4 {[%emt 0:00:23]} 20. a4 {[%emt 0:00:07]} a6 {[%emt 0:00:02]} 21. bxa6 {[%emt 0:00:11]} Rxa6 {[%emt 0:00:03]} 22. Rfd1 {[%emt 0:00:59]} Qd5+ {[%emt 0:00:07]} 23. Kg1 {[%emt 0:00:03]} Re8 {[%emt 0:00:02]} 24. a5 {[%emt 0:00:11]} Bxa5 {[%emt 0:00:02]} 25. Rc5 {[%emt 0:00:04]} Qa2 {[%emt 0:00:08]} 26. Qb5 {[%emt 0:00:35]} Rea8 {[%emt 0:00:02]} 27. Qxb7 {[%emt 0:00:12]} Bxb4 {[%emt 0:00:09]} 28. Qxb4 {[%emt 0:00:03]} Qxe2 {[%emt 0:00:03]} 29. Qxd4 {[%emt 0:00:02]} h6 {[%emt 0:00:09]} 30. Rc7 {[%emt 0:00:02]} R6a7 {[%emt 0:00:10]} 31. Rxa7 {[%emt 0:00:05]} Rxa7 {[%emt 0:00:01]} 32. Qxa7 {[%emt 0:00:01]} Qxd1+ {[%emt 0:00:02]} 33. Kg2 {[%emt 0:00:01]} Qd5+ {[%emt 0:00:00]} 34. Kg1 {[%emt 0:00:02]} Qd1+ {[%emt 0:00:00]} 35. Kg2 {[%emt 0:00:01]} Qd5+ {[%emt 0:00:01]} 36. Kg1 {[%emt 0:00:00]} Qd1+ {[%emt 0:00:01]} 1/2-1/2

[Event "FIDE Online Steinitz Memorial Open"]
[Site "Internet"]
[Date "2020.05.16"]
[Round "10"]
[White "Mamedyarov, Shakhriyar"]
[Black "Bu, Xiangzhi"]
[Result "1-0"]
[ECO "D23"]
[WhiteElo "2716"]
[BlackElo "2760"]
[Annotator "RC"]
[PlyCount "105"]
[EventDate "2020.05.15"]
[EventType "tourn"]
[SourceTitle "playchess.com"]
[Source "ChessBase"]
[SourceQuality "1"]
[TimeControl "180+2"]

1. d4 d5 2. c4 {[%emt 0:00:04]} c6 {[%emt 0:00:03]} 3. Nf3 {[%emt 0:00:01]} Nf6 {[%emt 0:00:01]} 4. Qb3 {[%emt 0:00:00]} dxc4 {[%emt 0:00:02]} 5. Qxc4 {[%emt 0:00:01]} Bf5 {[%emt 0:00:01]} 6. g3 {[%emt 0:00:02]} e6 {[%emt 0:00:02]} 7. Bg2 {[%emt 0:00:00]} Nbd7 {[%emt 0:00:01]} 8. O-O {[%emt 0:00:01]} Be7 {[%emt 0:00:00]} 9. Nc3 {[%emt 0:00:03]} O-O {[%emt 0:00:02]} 10. Re1 {[%emt 0:00:01]} b5 {[%emt 0:00:02]} 11. Qb3 {[%emt 0:00:16]} b4 {[%emt 0:00:02]} 12. Na4 {[%emt 0:00:03]} Be4 {[%emt 0:00:03]} 13. Bg5 {[%emt 0:00:15]} Qa5 {[%emt 0:00:24]} 14. Bxf6 {[%emt 0:00:09]} Nxf6 {[%emt 0:00:07]} 15. Rac1 {[%emt 0:00:13]} Bd5 {[%emt 0:00:36]} 16. Qc2 {[%emt 0:00:04]} b3 {[%emt 0:00:07]} 17. axb3 {[%emt 0:00:01]} Rab8 {[%emt 0:00:01]} 18. Nc3 {[%emt 0:01:08]} Bxb3 {[%emt 0:00:02]} 19. Qd3 {[%emt 0:00:01]} Nd7 {[%emt 0:00:58]} 20. Nd2 {[%emt 0:00:03]} Rfc8 {[%emt 0:00:07]} 21. Ra1 {[%emt 0:00:02]} Qc7 {[%emt 0:00:12]} 22. Rec1 {[%emt 0:00:03]} a5 {[%emt 0:00:16]} 23. e3 {[%emt 0:00:16]} Qb6 {[%emt 0:00:06]} 24. h4 {[%emt 0:00:15]} h6 {[%emt 0:00:07]} 25. Nxb3 {[%emt 0:00:04]} Qxb3 {[%emt 0:00:02]} 26. Rxa5 {[%emt 0:00:01]} Qxb2 {[%emt 0:00:01]} 27. Rb1 {[%emt 0:00:03]} Qxc3 {[%emt 0:00:05]} 28. Qxc3 {[%emt 0:00:01]} Rxb1+ {[%emt 0:00:01]} 29. Kh2 {[%emt 0:00:01]} Nf6 {[%emt 0:00:04]} 30. Bf3 {[%emt 0:00:08]} Bb4 {[%emt 0:00:01]} 31. Qc2 {[%emt 0:00:03]} Bxa5 {[%emt 0:00:05]} 32. Qxb1 {[%emt 0:00:01]} Rd8 {[%emt 0:00:11]} 33. Bxc6 {[%emt 0:00:02]} Bc7 {[%emt 0:00:04]} 34. Kg2 {[%emt 0:00:01]} Bd6 {[%emt 0:00:02]} 35. Qa2 {[%emt 0:00:03]} Rb8 {[%emt 0:00:02]} 36. Bf3 {[%emt 0:00:01]} h5 {[%emt 0:00:02]} 37. e4 {[%emt 0:00:02]} e5 {[%emt 0:00:04]} 38. Qa6 {[%emt 0:00:06]} Rd8 {[%emt 0:00:05]} 39. Qb6 {[%emt 0:00:01]} Rd7 {[%emt 0:00:01]} 40. d5 {[%emt 0:00:13]} g6 {[%emt 0:00:02]} 41. Be2 {[%emt 0:00:03]} Be7 {[%emt 0:00:03]} 42. Bb5 {[%emt 0:00:01]} Rd8 {[%emt 0:00:02]} 43. Kf3 {[%emt 0:00:04]} Kf8 {[%emt 0:00:01]} 44. Qc7 {[%emt 0:00:03]} Rd6 {[%emt 0:00:02]} 45. Bc6 {[%emt 0:00:01]} Ng4 {[%emt 0:00:05]} 46. Ke2 {[%emt 0:00:01]} Nf6 {[%emt 0:00:01]} 47. f3 {[%emt 0:00:01]} Nh7 {[%emt 0:00:02]} 48. f4 {[%emt 0:00:01]} f6 {[%emt 0:00:03]} 49. Bd7 {[%emt 0:00:03]} Ra6 {[%emt 0:00:03]} 50. f5 {[%emt 0:00:03]} Ra2+ {[%emt 0:00:02]} 51. Kd1 {[%emt 0:00:01]} g5 {[%emt 0:00:02]} 52. Be6 {[%emt 0:00:04]} Ra8 {[%emt 0:00:02]} 53. d6 {[%emt 0:00:02]} 1-0

[Event "FIDE Online Steinitz Memorial Open"]
[Site "Internet"]
[Date "2020.05.16"]
[Round "10"]
[White "Le, Quang Liem"]
[Black "Dubov, Daniil"]
[Result "1/2-1/2"]
[ECO "D45"]
[WhiteElo "2690"]
[BlackElo "2720"]
[Annotator "ChessBase"]
[PlyCount "107"]
[EventDate "2020.05.15"]
[EventType "tourn"]
[SourceTitle "playchess.com"]
[Source "ChessBase"]
[SourceQuality "1"]
[TimeControl "180+2"]

1. Nf3 d5 2. e3 {[%emt 0:00:09]} Nf6 {[%emt 0:00:07]} 3. c4 {[%emt 0:00:01]} e6 {[%emt 0:00:05]} 4. Nc3 {[%emt 0:00:01]} c6 {[%emt 0:00:12]} 5. b3 {[%emt 0:00:04]} Bd6 {[%emt 0:00:02]} 6. Bb2 {[%emt 0:00:04]} O-O {[%emt 0:00:01]} 7. d4 {[%emt 0:00:04]} Nbd7 {[%emt 0:00:06]} 8. Be2 {[%emt 0:00:10]} Re8 {[%emt 0:00:06]} 9. O-O {[%emt 0:00:02]} dxc4 {[%emt 0:00:01]} 10. bxc4 {[%emt 0:00:00]} e5 {[%emt 0:00:01]} 11. Qc2 {[%emt 0:00:16]} exd4 {[%emt 0:00:03]} 12. exd4 {[%emt 0:00:00]} Nf8 {[%emt 0:00:01]} 13. Rad1 {[%emt 0:00:09]} Ng6 {[%emt 0:00:02]} 14. Ne5 {[%emt 0:00:19]} Nf4 {[%emt 0:00:21]} 15. Bf3 {[%emt 0:00:05]} Be6 {[%emt 0:00:05]} 16. g3 {[%emt 0:00:26]} Ng6 {[%emt 0:00:08]} 17. Bg2 {[%emt 0:00:04]} Qc8 {[%emt 0:00:05]} 18. f4 {[%emt 0:00:13]} Bh3 {[%emt 0:00:08]} 19. Rfe1 {[%emt 0:00:16]} Bxg2 {[%emt 0:00:03]} 20. Kxg2 {[%emt 0:00:04]} Qc7 {[%emt 0:00:05]} 21. Nf3 {[%emt 0:00:07]} Rad8 {[%emt 0:00:07]} 22. f5 {[%emt 0:00:02]} Nf8 {[%emt 0:00:03]} 23. Qb3 {[%emt 0:00:04]} Qc8 {[%emt 0:00:25]} 24. Qc2 {[%emt 0:00:01]} Rxe1 {[%emt 0:00:05]} 25. Rxe1 {[%emt 0:00:00]} Re8 {[%emt 0:00:01]} 26. Rxe8 {[%emt 0:00:04]} Qxe8 {[%emt 0:00:01]} 27. Bc1 {[%emt 0:00:02]} b5 {[%emt 0:00:06]} 28. c5 {[%emt 0:00:09]} Bc7 {[%emt 0:00:02]} 29. h3 {[%emt 0:00:13]} N8d7 {[%emt 0:00:08]} 30. g4 {[%emt 0:00:02]} b4 {[%emt 0:00:05]} 31. Ne2 {[%emt 0:00:08]} Nd5 {[%emt 0:00:02]} 32. Kf2 {[%emt 0:00:07]} N7f6 {[%emt 0:00:02]} 33. Ng3 {[%emt 0:00:07]} Nc3 {[%emt 0:00:26]} 34. Nf1 {[%emt 0:00:15]} h5 {[%emt 0:00:22]} 35. g5 {[%emt 0:00:04]} Qe4 {[%emt 0:00:02]} 36. Qxe4 {[%emt 0:00:08]} Nfxe4+ {[%emt 0:00:01]} 37. Ke3 {[%emt 0:00:00]} f6 {[%emt 0:00:10]} 38. g6 {[%emt 0:00:05]} Kf8 {[%emt 0:00:08]} 39. a3 {[%emt 0:00:03]} a5 {[%emt 0:00:02]} 40. axb4 {[%emt 0:00:01]} axb4 {[%emt 0:00:01]} 41. Kd3 {[%emt 0:00:02]} Nf2+ {[%emt 0:00:04]} 42. Kc4 {[%emt 0:00:02]} Nd5 {[%emt 0:00:01]} 43. Ne3 {[%emt 0:00:01]} Nxe3+ {[%emt 0:00:07]} 44. Bxe3 {[%emt 0:00:01]} Nxh3 {[%emt 0:00:01]} 45. Kxb4 {[%emt 0:00:03]} Bf4 {[%emt 0:00:05]} 46. Bxf4 {[%emt 0:00:07]} Nxf4 {[%emt 0:00:00]} 47. Ka5 {[%emt 0:00:00]} Ke8 {[%emt 0:00:01]} 48. Kb6 {[%emt 0:00:01]} Kd7 {[%emt 0:00:01]} 49. Kb7 {[%emt 0:00:01]} Nd5 {[%emt 0:00:02]} 50. Nh4 {[%emt 0:00:02]} Ne3 {[%emt 0:00:04]} 51. Kb6 {[%emt 0:00:02]} Nd5+ {[%emt 0:00:01]} 52. Kb7 {[%emt 0:00:00]} Ne3 {[%emt 0:00:01]} 53. Kb6 {[%emt 0:00:02]} Nd5+ {[%emt 0:00:03]} 54. Kb7 {[%emt 0:00:00]} 1/2-1/2

[Event "FIDE Online Steinitz Memorial Open"]
[Site "Internet"]
[Date "2020.05.17"]
[Round "13"]
[White "Bu, Xiangzhi"]
[Black "Grischuk, Alexander"]
[Result "1-0"]
[ECO "A48"]
[WhiteElo "2760"]
[BlackElo "2765"]
[Annotator "RC"]
[PlyCount "97"]
[EventDate "2020.05.15"]
[EventType "tourn"]
[SourceTitle "playchess.com"]
[Source "ChessBase"]
[SourceQuality "1"]
[TimeControl "180+2"]

1. d4 Nf6 2. Nf3 {[%emt 0:00:04]} g6 {[%emt 0:00:04]} 3. Bf4 {[%emt 0:00:02]} Bg7 {[%emt 0:00:01]} 4. c3 {[%emt 0:00:01]} O-O {[%emt 0:00:01]} 5. h3 {[%emt 0:00:01]} c5 {[%emt 0:00:07]} 6. e3 {[%emt 0:00:02]} d6 {[%emt 0:00:03]} 7. dxc5 {[%emt 0:00:02]} dxc5 {[%emt 0:00:01]} 8. Qxd8 {[%emt 0:00:02]} Rxd8 {[%emt 0:00:00]} 9. Bc7 {[%emt 0:00:01]} Rd7 {[%emt 0:00:07]} 10. Bh2 {[%emt 0:00:02]} b6 {[%emt 0:00:07]} 11. Bb5 {[%emt 0:00:05]} Rd8 {[%emt 0:00:01]} 12. Nbd2 {[%emt 0:00:06]} Bb7 {[%emt 0:00:02]} 13. O-O {[%emt 0:00:06]} Nc6 {[%emt 0:00:01]} 14. Rfd1 {[%emt 0:00:02]} Kf8 {[%emt 0:00:11]} 15. Be2 {[%emt 0:00:10]} Rd7 {[%emt 0:00:09]} 16. a4 {[%emt 0:00:06]} Rad8 {[%emt 0:00:03]} 17. Nc4 {[%emt 0:00:28]} Rxd1+ {[%emt 0:00:09]} 18. Rxd1 {[%emt 0:00:09]} Rxd1+ {[%emt 0:00:01]} 19. Bxd1 {[%emt 0:00:00]} Ne4 {[%emt 0:00:12]} 20. Bc2 {[%emt 0:00:04]} Nf6 {[%emt 0:00:04]} 21. Nfe5 {[%emt 0:00:16]} Nxe5 {[%emt 0:00:04]} 22. Bxe5 {[%emt 0:00:01]} Nd7 {[%emt 0:00:04]} 23. Bc7 {[%emt 0:00:03]} Ke8 {[%emt 0:00:10]} 24. f3 {[%emt 0:00:10]} Bd5 {[%emt 0:00:11]} 25. Bd3 {[%emt 0:00:03]} Bxc4 {[%emt 0:00:09]} 26. Bxc4 {[%emt 0:00:01]} Be5 {[%emt 0:00:01]} 27. Bxe5 {[%emt 0:00:02]} Nxe5 {[%emt 0:00:00]} 28. Bb5+ {[%emt 0:00:01]} Kd8 {[%emt 0:00:00]} 29. f4 {[%emt 0:00:01]} Nd7 {[%emt 0:00:01]} 30. Kf2 {[%emt 0:00:05]} Kc7 {[%emt 0:00:09]} 31. Kf3 {[%emt 0:00:08]} Kd6 {[%emt 0:00:20]} 32. g4 {[%emt 0:00:14]} h6 {[%emt 0:00:26]} 33. h4 {[%emt 0:00:06]} Nf6 {[%emt 0:00:10]} 34. g5 {[%emt 0:00:34]} hxg5 {[%emt 0:00:00]} 35. hxg5 {[%emt 0:00:01]} Nh5 {[%emt 0:00:00]} 36. Be8 {[%emt 0:00:16]} Ke6 {[%emt 0:00:17]} 37. e4 {[%emt 0:00:01]} Ng7 {[%emt 0:00:03]} 38. Bb5 {[%emt 0:00:02]} Kd6 {[%emt 0:00:05]} 39. Kg4 {[%emt 0:00:03]} e6 {[%emt 0:00:07]} 40. b3 {[%emt 0:00:10]} Nh5 {[%emt 0:00:13]} 41. f5 {[%emt 0:00:06]} Ke5 {[%emt 0:00:03]} 42. f6 {[%emt 0:00:06]} Nf4 {[%emt 0:00:18]} 43. Be8 {[%emt 0:00:03]} Nd3 {[%emt 0:00:01]} 44. Bxf7 {[%emt 0:00:03]} Nf2+ {[%emt 0:00:00]} 45. Kh4 {[%emt 0:00:01]} Nxe4 {[%emt 0:00:06]} 46. Bxg6 {[%emt 0:00:01]} Nxf6 {[%emt 0:00:06]} 47. gxf6 {[%emt 0:00:01]} Kxf6 {[%emt 0:00:00]} 48. Bd3 {[%emt 0:00:02]} Ke5 {[%emt 0:00:02]} 49. Kg4 {[%emt 0:00:01]} 1-0